fUSD/lending_fUSD_20240712
["ID","MTS","AMOUNT","RATE_DAILY","PERIOD"]
[331759792,1720753905213,-500.0,0.00013962,2]
[331759793,1720753905223,-500.0,0.00013962,2]
[331759794,1720753905232,-500.0,0.00013962,2]
[331759795,1720753905241,-500.0,0.00013962,2]
[331759796,1720753905250,-500.0,0.00013962,2]
[331759797,1720753905259,-500.0,0.00013962,2]
[331759798,1720753905269,-500.0,0.00013962,2]
[331759799,1720753905278,-500.0,0.00013962,2]
[331759800,1720753905288,-500.0,0.00013962,2]
[331759801,1720753905298,-523.44,0.00013962,2]
[331759802,1720753905307,-500.0,0.00013962,2]
[331759803,1720753905317,-662.2,0.00013962,2]
[331759804,1720753905328,-500.0,0.00013962,2]
[331759805,1720753905337,-500.0,0.00013962,2]
[331759806,1720753905346,-500.0,0.00013962,2]
[331759807,1720753905355,-651.43,0.00013962,2]
[331759808,1720753905364,-662.44,0.00013962,2]
[331759809,1720753905373,-579.1,0.00013962,2]
[331759810,1720753905383,-568.02,0.00013962,2]
[331759811,1720753905392,-500.0,0.00013962,2]
[331759812,1720753905402,-818.74,0.00013962,2]
[331759813,1720753905412,-838.87,0.00013962,2]
[331759814,1720753905422,-501.99407375,0.00013962,2]
[331759815,1720753905431,-681.61,0.00013962,2]
[331759816,1720753905442,-501.3497898,0.00013962,2]
[331759817,1720753905451,-502.09369253,0.00013962,2]
[331759818,1720753905460,-502.06360259,0.00013962,2]
[331759819,1720753905471,-554.73,0.00013962,2]
[331759820,1720753905480,-500.64738951,0.00013962,2]
[331759821,1720753905490,-502.0104515,0.00013962,2]
[331759822,1720753905499,-584.76,0.00013962,2]
[331759823,1720753905508,-500.49029832,0.00013962,2]
[331759824,1720753905518,-501.33366113,0.00013962,2]
[331759825,1720753905528,-502.05176185,0.00013962,2]
[331759826,1720753905537,-500.0,0.00013962,2]
[331759827,1720753905547,-500.0,0.00013962,2]
[331759828,1720753905557,-500.0,0.00013962,2]
[331759829,1720753905567,-500.80128793,0.00013962,2]
[331759830,1720753905577,-501.49166554,0.00013962,2]
[331759831,1720753905587,-501.91,0.00013962,2]
[331759832,1720753905597,-500.66580995,0.00013962,2]
[331759833,1720753905608,-501.98236942,0.00013962,2]
[331759834,1720753905619,-151.0,0.00013962,2]
[331759835,1720753905628,-369.40296847,0.00013962,2]
[331759836,1720753905638,-500.0,0.00013962,2]
[331759837,1720753905647,-151.0,0.00013962,2]
[331759838,1720753905657,-500.0,0.00013962,2]
[331759839,1720753905666,-151.0,0.00013962,2]
[331759840,1720753905676,-629.03,0.00013962,2]
[331759841,1720753905685,-501.45291319,0.00013962,2]
[331759842,1720753905695,-500.0,0.00013962,2]
[331759843,1720753905705,-500.0,0.00013962,2]
[331759844,1720753905714,-813.83,0.00013962,2]
[331759845,1720753905724,-502.11654569,0.00013962,2]
[331759846,1720753905735,-500.6620483,0.00013962,2]
[331759847,1720753905744,-500.64669226,0.00013962,2]
[331759848,1720753905755,-502.04979735,0.00013962,2]
[331759849,1720753905764,-500.47421937,0.00013962,2]
[331759850,1720753905774,-500.50325524,0.00013962,2]
[331759851,1720753905783,-500.57306906,0.00013962,2]
[331759852,1720753905795,-340.7942318,0.00013962,2]
[331759853,1720753905805,-501.07560593,0.00013962,2]
[331759854,1720753905816,-501.32111331,0.00013962,2]
[331759855,1720753905826,-348.18641024,0.00013962,2]
[331759856,1720753905835,-501.27364871,0.00013962,2]
[331759857,1720753905846,-500.65766769,0.00013962,2]
[331759858,1720753905858,-500.0,0.00013962,2]
[331759859,1720753905868,-501.07267264,0.00013962,2]
[331759860,1720753905877,-503.04481347,0.00013962,2]
[331759861,1720753905887,-501.02001448,0.00013962,2]
[331759862,1720753905897,-502.01643093,0.00013962,2]
[331759863,1720753905906,-150.0,0.00013962,2]
[331759864,1720753905915,-500.0,0.00013963,2]
[331759865,1720753905925,-500.0,0.00013963,2]
[331759866,1720753905935,-500.0,0.00013963,2]
[331759867,1720753905948,-500.0,0.00013963,2]
[331759868,1720753905959,-500.0,0.00013963,2]
[331759869,1720753905968,-256.83344241,0.00013963,2]
[331759870,1720753905979,-389.52552162,0.00013963,2]
[331759871,1720753905989,-467.0363077,0.00013963,2]
[331759872,1720753905999,-431.05696695,0.00013963,2]
[331759873,1720753906009,-500.0,0.00013963,2]
[331759874,1720753906019,-500.0,0.00013963,2]
[331759875,1720753906028,-627.32954009,0.00013963,2]
[331759876,1720753906037,-258.26705795,0.00013963,2]
[331759877,1720753906047,-500.0,0.00013963,2]
[331759878,1720753906057,-500.0,0.00013963,2]
[331759879,1720753906067,-500.0,0.00013963,2]
[331759880,1720753906076,-273.49753132,0.00013963,2]
[331759881,1720753906085,-489.66222483,0.00013963,2]
[331759882,1720753906094,-513.32,0.00013963,2]
[331759883,1720753906103,-422.59114803,0.00013963,2]
[331759884,1720753906113,-500.0,0.00013963,2]
[331759885,1720753906123,-500.0,0.00013963,2]
[331759886,1720753906134,-500.0,0.00013963,2]
[331759887,1720753906144,-500.0,0.00013963,2]
[331759888,1720753906154,-399.44199955,0.00013963,2]
[331759889,1720753906163,-500.0,0.00013963,2]
[331759890,1720753906172,-358.28162325,0.00013963,2]
[331759891,1720753906182,-500.0,0.00013963,2]
[331759892,1720753906192,-500.0,0.00013963,2]
[331759893,1720753906202,-500.0,0.00013963,2]
[331759894,1720753906212,-276.45853969,0.00013963,2]
[331759895,1720753906221,-500.0,0.00013963,2]
[331759896,1720753906230,-310.77261878,0.00013963,2]
[331759897,1720753906240,-500.0,0.00013963,2]
[331759898,1720753906249,-500.0,0.00013963,2]
[331759899,1720753906259,-500.0,0.00013963,2]
[331759900,1720753906268,-500.0,0.00013963,2]
[331759901,1720753906278,-500.0,0.00013963,2]
[331759902,1720753906287,-500.0,0.00013963,2]
[331759903,1720753906297,-500.0,0.00013963,2]
[331759904,1720753906307,-500.0,0.00013963,2]
[331759905,1720753906316,-500.0,0.00013963,2]
[331759906,1720753906326,-543.84121057,0.00013963,2]
[331759907,1720753906335,-500.0,0.00013963,2]
[331759908,1720753906344,-500.0,0.00013963,2]
[331759909,1720753906354,-506.98677895,0.00013963,2]
[331759910,1720753906363,-500.0,0.00013963,2]
[331759911,1720753906372,-301.66458061,0.00013963,2]
[331759912,1720753906381,-500.0,0.00013963,2]
[331759913,1720753906390,-500.0,0.00013963,2]
[331759914,1720753906399,-500.0,0.00013963,2]
[331759915,1720753906408,-388.73453061,0.00013963,2]
[331759916,1720753906418,-500.0,0.00013963,2]
[331759917,1720753906427,-507.08965694,0.00013963,2]
[331759918,1720753906436,-500.0,0.00013963,2]
[331759919,1720753906449,-500.0,0.00013963,2]
[331759920,1720753906458,-507.59266495,0.00013963,2]
[331759921,1720753906467,-500.0,0.00013963,2]
[331759922,1720753906476,-500.0,0.00013963,2]
[331759923,1720753906486,-500.0,0.00013963,2]
[331759924,1720753906494,-183.85789724,0.00013963,2]
[331759925,1720753906504,-500.0,0.00013963,2]
[331759926,1720753906513,-500.0,0.00013963,2]
[331759927,1720753906523,-500.0,0.00013963,2]
[331759928,1720753906532,-500.0,0.00013963,2]
[331759929,1720753906541,-500.0,0.00013963,2]
[331759930,1720753906550,-218.72895806,0.00013963,2]
[331759931,1720753906559,-500.0,0.00013963,2]
[331759932,1720753906568,-150.0,0.00013963,2]
[331759933,1720753906578,-150.0,0.00013965,2]
[331759934,1720753906587,-150.0,0.00013966,2]
[331759935,1720753906596,-150.0,0.00013967,2]
[331759936,1720753906605,-150.0,0.00013967,2]
[331759937,1720753906615,-606.03,0.00013968,2]
[331759938,1720753906624,-500.0,0.00013968,2]
[331759939,1720753906634,-500.0,0.00013968,2]
[331759940,1720753906644,-2690.48,0.00013968,2]
[331759941,1720753906653,-817.33,0.00013968,2]
[331759942,1720753906663,-500.0,0.00013968,2]
[331759943,1720753906673,-500.0,0.00013968,2]
[331759944,1720753906683,-150.0,0.00013969,2]
[331759945,1720753906692,-500.0,0.00013969,2]
[331759946,1720753906702,-500.0,0.00013969,2]
[331759947,1720753906713,-500.0,0.00013969,2]
[331759948,1720753906722,-500.0,0.00013969,2]
[331759949,1720753906732,-500.0,0.00013969,2]
[331759950,1720753906742,-670.4,0.00013969,2]
[331759951,1720753906751,-505.03,0.00013969,2]
[331759952,1720753906760,-500.0,0.00013969,2]
[331759953,1720753906772,-500.0,0.00013969,2]
[331759954,1720753906784,-500.0,0.00013969,2]
[331759955,1720753906795,-500.0,0.00013969,2]
[331759956,1720753906806,-500.0,0.00013969,2]
[331759957,1720753906816,-500.0,0.00013969,2]
[331759958,1720753906826,-500.0,0.00013969,2]
[331759959,1720753906837,-500.0,0.00013969,2]
[331759960,1720753906850,-565.99,0.00013969,2]
[331759961,1720753906863,-694.4,0.00013969,2]
[331759962,1720753906874,-662.33,0.00013969,2]
[331759963,1720753906885,-726.76,0.00013969,2]
[331759964,1720753906895,-500.0,0.00013969,2]
[331759965,1720753906906,-500.0,0.00013969,2]
[331759966,1720753906917,-864.4,0.00013969,2]
[331759967,1720753906929,-615.26,0.00013969,2]
[331759968,1720753906940,-500.0,0.00013969,2]
[331759969,1720753906949,-585.35,0.00013969,2]
[331759970,1720753906959,-500.0,0.00013969,2]
[331759971,1720753906968,-776.5,0.00013969,2]
[331759972,1720753906978,-500.0,0.00013969,2]
[331759973,1720753906989,-548.13,0.00013969,2]
[331759974,1720753906999,-718.94,0.00013969,2]
[331759975,1720753907008,-500.0,0.00013969,2]
[331759976,1720753907017,-535.75,0.00013969,2]
[331759977,1720753907027,-500.0,0.00013969,2]
[331759978,1720753907039,-500.0,0.00013969,2]
[331759979,1720753907049,-500.0,0.00013969,2]
[331759980,1720753907059,-905.08,0.00013969,2]
[331759981,1720753907069,-500.0,0.00013969,2]
[331759982,1720753907079,-500.0,0.00013969,2]
[331759983,1720753907090,-541.67,0.00013969,2]
[331759984,1720753907101,-500.0,0.00013969,2]
[331759985,1720753907111,-730.99,0.00013969,2]
[331759986,1720753907122,-500.0,0.00013969,2]
[331759987,1720753907132,-540.61,0.00013969,2]
[331759988,1720753907141,-500.0,0.00013969,2]
[331759989,1720753907151,-984.63,0.00013969,2]
[331759990,1720753907161,-930.59,0.00013969,2]
[331759991,1720753907171,-500.0,0.00013969,2]
[331759992,1720753907180,-500.0,0.00013969,2]
[331759993,1720753907189,-500.0,0.00013969,2]
[331759994,1720753907198,-500.0,0.00013969,2]
[331759995,1720753907207,-633.7,0.00013969,2]
[331759996,1720753907217,-500.0,0.00013969,2]
[331759997,1720753907227,-500.0,0.00013969,2]
[331759998,1720753907236,-500.0,0.00013969,2]
[331759999,1720753907247,-672.77,0.00013969,2]
[331760000,1720753907257,-4929.24,0.00013969,2]
[331760001,1720753907267,-500.0,0.00013969,2]
[331760002,1720753907277,-893.72,0.00013969,2]
[331760003,1720753907287,-1244.72,0.00013969,2]
[331760004,1720753907296,-568.7,0.00013969,2]
[331760005,1720753907306,-500.0,0.00013969,2]
[331760006,1720753907315,-500.0,0.00013969,2]
[331760007,1720753907324,-500.0,0.00013969,2]
[331760008,1720753907333,-500.0,0.00013969,2]
[331760009,1720753907343,-500.0,0.00013969,2]
[331760010,1720753907352,-500.0,0.00013969,2]
[331760011,1720753907361,-559.67,0.00013969,2]
[331760012,1720753907370,-500.0,0.00013969,2]
[331760013,1720753907380,-641.54,0.00013969,2]
[331760014,1720753907389,-500.0,0.00013969,2]
[331760015,1720753907398,-500.0,0.00013969,2]
[331760016,1720753907407,-500.0,0.00013969,2]
[331760017,1720753907416,-500.0,0.00013969,2]
[331760018,1720753907425,-468.21318294,0.00013969,2]
[331760019,1720753907434,-194.33329755,0.00013969,2]
[331760020,1720753907443,-500.0,0.00013969,2]
[331760021,1720753907452,-816.28,0.00013969,2]
[331760022,1720753907461,-500.0,0.00013969,2]
[331760023,1720753907470,-500.0,0.00013969,2]
[331760024,1720753907479,-329.47,0.00013969,2]
[331760025,1720753907487,-162.41301796,0.00013969,2]
[331760026,1720753907496,-659.46,0.00013969,2]
[331760027,1720753907506,-520.9,0.00013969,2]
[331760028,1720753907515,-561.42,0.00013969,2]
[331760029,1720753907524,-549.05,0.00013969,2]
[331760030,1720753907533,-845.75,0.00013969,2]
[331760031,1720753907542,-546.01,0.00013969,2]
[331760032,1720753907551,-630.37,0.00013969,2]
[331760033,1720753907560,-594.38,0.00013969,2]
[331760034,1720753907569,-500.0,0.00013969,2]
[331760035,1720753907578,-500.0,0.00013969,2]
[331760036,1720753907588,-500.0,0.00013969,2]
[331760037,1720753907597,-500.0,0.00013969,2]
[331760038,1720753907606,-766.85,0.00013969,2]
[331760039,1720753907615,-1279.88,0.00013969,2]
[331760040,1720753907624,-666.89,0.00013969,2]
[331760041,1720753907633,-500.0,0.00013969,2]
[331760042,1720753907642,-521.11,0.00013969,2]
[331760043,1720753907651,-500.0,0.00013969,2]
[331760044,1720753907660,-1284.67,0.00013969,2]
[331760045,1720753907669,-521.31,0.00013969,2]
[331760046,1720753907678,-151.0,0.00013969,2]
[331760047,1720753907687,-500.0,0.00013969,2]
[331760048,1720753907696,-500.0,0.00013969,2]
[331760049,1720753907705,-151.0,0.00013969,2]
[331760050,1720753907713,-2357.51,0.00013969,2]
[331760051,1720753907723,-536.16,0.00013969,2]
[331760052,1720753907732,-500.0,0.00013969,2]
[331760053,1720753907742,-500.0,0.00013969,2]
[331760054,1720753907751,-2897.7,0.00013969,2]
[331760055,1720753907762,-151.0,0.00013969,2]
[331760056,1720753907772,-500.0,0.00013969,2]
[331760057,1720753907784,-371.831488,0.00013969,2]
[331760058,1720753907795,-2160.68,0.00013969,2]
[331760059,1720753907805,-500.0,0.00013969,2]
[331760060,1720753907815,-371.831488,0.00013969,2]
[331760061,1720753907827,-150.0,0.00013969,2]
[331760062,1720753907836,-473.4097067,0.0001397,2]
[331760063,1720753907848,-473.4097067,0.0001397,2]
[331760064,1720753907858,-473.4097067,0.0001397,2]
[331760065,1720753907870,-241.0561506,0.0001397,2]
[331760066,1720753907882,-241.0561506,0.0001397,2]
[331760067,1720753907894,-241.0561506,0.0001397,2]
[331760068,1720753907904,-4560.5825079,0.0001397,2]
[331760069,1720753907913,-2598.383793,0.0001397,2]
[331760070,1720753907924,-636.1850781,0.0001397,2]
[331760071,1720753907936,-150.0,0.0001397,2]
[331760072,1720753907946,-150.0,0.00013971,2]
[331760073,1720753907956,-753.44,0.00013972,2]
[331760074,1720753907965,-150.0,0.00013973,2]
[331760075,1720753907974,-123285.0,0.00013973,2]
[331760076,1720753907984,-150.0,0.00013973,2]
[331760077,1720753907994,-238.428588,0.00013973,2]
[331760078,1720753908003,-151.0,0.00013973,2]
[331760079,1720753908013,-238.428588,0.00013973,2]
[331760080,1720753908022,-171.344459,0.00013973,2]
[331760081,1720753908031,-151.0,0.00013973,2]
[331760082,1720753908041,-151.0,0.00013973,2]
[331760083,1720753908050,-151.0,0.00013973,2]
[331760084,1720753908059,-151.0,0.00013973,2]
[331760085,1720753908069,-151.0,0.00013973,2]
[331760086,1720753908078,-150.0,0.00013975,2]
[331760087,1720753908087,-150.0,0.00013975,2]
[331760088,1720753908096,-2690.48,0.00013976,2]
[331760089,1720753908106,-813.83,0.00013976,2]
[331760090,1720753908115,-150.0,0.00013977,2]
[331760091,1720753908125,-150.0,0.00013977,2]
[331760092,1720753908134,-82386.83503153,0.00013977,2]
[331760093,1720753908143,-150.0,0.00013979,2]
[331760094,1720753908152,-150.0,0.00013979,2]
[331760095,1720753908161,-606.03,0.00013979,2]
[331760096,1720753908170,-606.03,0.00013979,2]
[331760097,1720753908179,-606.03,0.00013979,2]
[331760098,1720753908189,-606.03,0.00013979,2]
[331760099,1720753908198,-500.0,0.00013979,2]
[331760100,1720753908207,-500.0,0.00013979,2]
[331760101,1720753908217,-500.0,0.00013979,2]
[331760102,1720753908226,-500.0,0.00013979,2]
[331760103,1720753908236,-753.44,0.00013979,2]
[331760104,1720753908245,-753.44,0.00013979,2]
[331760105,1720753908254,-753.44,0.00013979,2]
[331760106,1720753908263,-753.44,0.00013979,2]
[331760107,1720753908272,-500.0,0.00013979,2]
[331760108,1720753908281,-500.0,0.00013979,2]
[331760109,1720753908290,-500.0,0.00013979,2]
[331760110,1720753908299,-500.0,0.00013979,2]
[331760111,1720753908309,-2690.48,0.00013979,2]
[331760112,1720753908318,-2690.48,0.00013979,2]
[331760113,1720753908327,-2690.48,0.00013979,2]
[331760114,1720753908337,-813.83,0.00013979,2]
[331760115,1720753908347,-813.83,0.00013979,2]
[331760116,1720753908356,-813.83,0.00013979,2]
[331760117,1720753908365,-817.33,0.00013979,2]
[331760118,1720753908374,-817.33,0.00013979,2]
[331760119,1720753908383,-817.33,0.00013979,2]
[331760120,1720753908392,-817.33,0.00013979,2]
[331760121,1720753908402,-500.0,0.00013979,2]
[331760122,1720753908411,-500.0,0.00013979,2]
[331760123,1720753908420,-500.0,0.00013979,2]
[331760124,1720753908430,-500.0,0.00013979,2]
[331760125,1720753908441,-500.0,0.00013979,2]
[331760126,1720753908450,-500.0,0.00013979,2]
[331760127,1720753908460,-500.0,0.00013979,2]
[331760128,1720753908469,-500.0,0.00013979,2]
[331760129,1720753908479,-853751.73293816,0.0001398,2]
[331760130,1720753908488,-151.0,0.0001398,2]
[331760131,1720753908497,-187.44367,0.0001398,2]
[331760132,1720753908507,-238.428588,0.0001398,2]
[331760133,1720753908516,-151.0,0.0001398,2]
[331760134,1720753908525,-238.428588,0.0001398,2]
[331760135,1720753908534,-151.0,0.0001398,2]
[331760136,1720753908544,-151.0,0.0001398,2]
[331760137,1720753908553,-151.0,0.0001398,2]
[331760138,1720753908562,-295.546662,0.0001398,2]
[331760139,1720753908571,-295.546662,0.0001398,2]
[331760140,1720753908580,-151.0,0.0001398,2]
[331760141,1720753908589,-151.0,0.0001398,2]
[331760142,1720753908598,-151.0,0.0001398,2]
[331760143,1720753908607,-151.0,0.0001398,2]
[331760144,1720753908616,-151.0,0.0001398,2]
[331760145,1720753908625,-298.628879,0.0001398,2]
[331760146,1720753908635,-151.0,0.0001398,2]
[331760147,1720753908644,-371.831488,0.0001398,2]
[331760148,1720753908655,-371.831488,0.0001398,2]
[331760149,1720753908664,-150.0,0.00013981,2]
[331760150,1720753908673,-150.0,0.00013983,2]
[331760151,1720753908682,-150.0,0.00013983,2]
[331760152,1720753908692,-150.0,0.00013984,2]
[331760153,1720753908701,-150.0,0.00013985,2]
[331760154,1720753908710,-150.0,0.00013986,2]
[331760155,1720753908719,-150.0,0.00013987,2]
[331760156,1720753908729,-150.0,0.00013988,2]
[331760157,1720753908738,-606.03,0.00013989,2]
[331760158,1720753908747,-500.0,0.00013989,2]
[331760159,1720753908756,-753.44,0.00013989,2]
[331760160,1720753908765,-500.0,0.00013989,2]
[331760161,1720753908775,-2690.48,0.00013989,2]
[331760162,1720753908785,-813.83,0.00013989,2]
[331760163,1720753908794,-462.24258694,0.00013989,2]
[331760164,1720753908803,-817.33,0.00013989,2]
[331760165,1720753908812,-500.0,0.00013989,2]
[331760166,1720753908822,-500.0,0.00013989,2]
[331760167,1720753908831,-250000.0,0.0001399,2]
[331760168,1720753908840,-20000.0,0.0001399,2]
[331760169,1720753908850,-150.0,0.0001399,2]
[331760170,1720753908860,-150.0,0.00013992,2]
[331760171,1720753908870,-150.0,0.00013992,2]
[331760172,1720753908879,-150.0,0.00013992,2]
[331760173,1720753908888,-150.0,0.00013994,2]
[331760174,1720753908898,-150.0,0.00013996,2]
[331760175,1720753908907,-150.0,0.00013996,2]
[331760176,1720753908916,-2690.48,0.00013997,2]
[331760177,1720753908926,-1221.307409,0.00013998,2]
[331760178,1720753908936,-170.93041,0.00013998,2]
[331760179,1720753908947,-277.430759,0.00013998,2]
[331760180,1720753908957,-863.311966,0.00013998,2]
[331760181,1720753908966,-178.897541,0.00013998,2]
[331760182,1720753908975,-178.315863,0.00013998,2]
[331760183,1720753908985,-1338.705002,0.00013998,2]
[331760184,1720753908994,-152.790958,0.00013998,2]
[331760185,1720753909003,-506.848744,0.00013998,2]
[331760186,1720753909012,-1846.049086,0.00013998,2]
[331760187,1720753909021,-2599.632199,0.00013998,2]
[331760188,1720753909030,-192.332697,0.00013998,2]
[331760189,1720753909039,-682.3178,0.00013998,2]
[331760190,1720753909226,-192.832814,0.00013998,2]
[331760191,1720753909236,-198.479556,0.00013998,2]
[331760192,1720753909245,-1410.546254,0.00013998,2]
[331760193,1720753909254,-154.829921,0.00013998,2]
[331760194,1720753909263,-177.897855,0.00013998,2]
[331760195,1720753909273,-211.975704,0.00013998,2]
[331760196,1720753909282,-187.078072,0.00013998,2]
[331760197,1720753909292,-187.453998,0.00013998,2]
[331760198,1720753909301,-187.961003,0.00013998,2]
[331760199,1720753909311,-181.57218,0.00013998,2]
[331760200,1720753909321,-179.3879,0.00013998,2]
[331760201,1720753909331,-150.0,0.00013998,2]
[331760202,1720753909340,-150.0,0.00013999,2]
[331760203,1720753909350,-606.03,0.00013999,2]
[331760204,1720753909360,-606.03,0.00013999,2]
[331760205,1720753909369,-606.03,0.00013999,2]
[331760206,1720753909379,-606.03,0.00013999,2]
[331760207,1720753909388,-606.03,0.00013999,2]
[331760208,1720753909397,-606.03,0.00013999,2]
[331760209,1720753909407,-606.03,0.00013999,2]
[331760210,1720753909416,-606.03,0.00013999,2]
[331760211,1720753909426,-606.03,0.00013999,2]
[331760212,1720753909436,-606.09303018,0.00013999,2]
[331760213,1720753909448,-500.0,0.00013999,2]
[331760214,1720753909457,-500.0,0.00013999,2]
[331760215,1720753909467,-500.0,0.00013999,2]
[331760216,1720753909476,-500.0,0.00013999,2]
[331760217,1720753909488,-500.0,0.00013999,2]
[331760218,1720753909497,-500.0,0.00013999,2]
[331760219,1720753909507,-500.0,0.00013999,2]
[331760220,1720753909516,-317.52,0.00013999,2]
[331760221,1720753909525,-753.44,0.00013999,2]
[331760222,1720753909534,-753.44,0.00013999,2]
[331760223,1720753909544,-753.44,0.00013999,2]
[331760224,1720753909554,-753.44,0.00013999,2]
[331760225,1720753909563,-753.44,0.00013999,2]
[331760226,1720753909572,-753.44,0.00013999,2]
[331760227,1720753909582,-753.44,0.00013999,2]
[331760228,1720753909591,-753.44,0.00013999,2]
[331760229,1720753909601,-753.5877604,0.00013999,2]
[331760230,1720753909610,-500.0,0.00013999,2]
[331760231,1720753909620,-500.0,0.00013999,2]
[331760232,1720753909629,-500.0,0.00013999,2]
[331760233,1720753909639,-500.0,0.00013999,2]
[331760234,1720753909648,-235.30488256,0.00013999,2]
[331760235,1720753909657,-2690.48,0.00013999,2]
[331760236,1720753909667,-2690.48,0.00013999,2]
[331760237,1720753909676,-2690.48,0.00013999,2]
[331760238,1720753909685,-2690.48,0.00013999,2]
[331760239,1720753909695,-2690.48,0.00013999,2]
[331760240,1720753909704,-2690.48,0.00013999,2]
[331760241,1720753909715,-2690.60733086,0.00013999,2]
[331760242,1720753909724,-813.83,0.00013999,2]
[331760243,1720753909733,-813.83,0.00013999,2]
[331760244,1720753909743,-813.83,0.00013999,2]
[331760245,1720753909753,-813.83,0.00013999,2]
[331760246,1720753909762,-813.83,0.00013999,2]
[331760247,1720753909772,-813.83,0.00013999,2]
[331760248,1720753909781,-813.83,0.00013999,2]
[331760249,1720753909791,-813.83,0.00013999,2]
[331760250,1720753909800,-813.83,0.00013999,2]
[331760251,1720753909810,-813.83,0.00013999,2]
[331760252,1720753909819,-813.83,0.00013999,2]
[331760253,1720753909829,-813.83,0.00013999,2]
[331760254,1720753909839,-813.95256989,0.00013999,2]
[331760255,1720753909849,-817.33,0.00013999,2]
[331760256,1720753909860,-817.33,0.00013999,2]
[331760257,1720753909870,-817.33,0.00013999,2]
[331760258,1720753909879,-817.33,0.00013999,2]
[331760259,1720753909889,-817.33,0.00013999,2]
[331760260,1720753909899,-817.33,0.00013999,2]
[331760261,1720753909908,-817.33,0.00013999,2]
[331760262,1720753909918,-817.33,0.00013999,2]
[331760263,1720753909928,-817.33,0.00013999,2]
[331760264,1720753909939,-817.40626418,0.00013999,2]
[331760265,1720753909948,-500.0,0.00013999,2]
[331760266,1720753909958,-500.0,0.00013999,2]
[331760267,1720753909968,-500.0,0.00013999,2]
[331760268,1720753909977,-500.0,0.00013999,2]
[331760269,1720753909987,-500.0,0.00013999,2]
[331760270,1720753909997,-500.0,0.00013999,2]
[331760271,1720753910006,-500.0,0.00013999,2]
[331760272,1720753910016,-500.0,0.00013999,2]
[331760273,1720753910026,-500.0,0.00013999,2]
[331760274,1720753910035,-431.73666403,0.00013999,2]
[331760275,1720753910045,-564.58081975,0.00013999,2]
[331760276,1720753910054,-290.97409774,0.00014,2]
[331760277,1720753910064,-271.79365431,0.00014,2]
[331760278,1720753910075,-204.67018591,0.00014,2]
[331760279,1720753910084,-150.0,0.00014,2]
[331760280,1720753910094,-160.56656396,0.00014,2]
[331760281,1720753910104,-503210.1242741,0.00014,2]
[331760282,1720753910114,-1034498.05932508,0.00014,2]
[331760283,1720753910123,-2074562.62988985,0.00014,2]
[331760284,1720753910816,-500.0,0.00013796,2]
[331760285,1720753910826,-500.0,0.00013846,2]
[331760286,1720753910835,-500.0,0.00013847,2]
[331760287,1720753910845,-500.0,0.00013899,2]
[331760288,1720753910858,-26804.33911735,0.00014,2]
[331760289,1720753910872,-1589.1865996,0.00014,2]
[331760290,1720754206606,725.87461134,0.00011199,2]
[331760291,1720754214735,318.77,0.00010814,2]